bitfinex/quotes_ETHUSD_20250322
["timestamp","ask_amount","ask_price","bid_price","bid_amount"]
[1742651198765,5.0231,1990.8,1990.7,32.44199]
[1742651198971,7.32842631,1990.8,1990.7,31.215]
[1742651199156,7.57596731,1990.8,1990.7,31.215]
[1742651200589,12.01344435,1990.8,1990.7,26.552]
[1742651200882,9.70811804,1990.8,1990.7,31.215]
[1742651204567,8.37066731,1990.8,1990.7,31.215]
[1742651205779,5.270641,1990.8,1990.7,31.215]
[1742651205984,7.57596731,1990.8,1990.7,31.215]
[1742651211786,5.270641,1990.8,1990.7,31.215]
[1742651211990,7.57596731,1990.8,1990.7,31.215]
[1742651212486,5.02366,1990.6,1990.5,26.556]
[1742651212780,5.2702205,1990.6,1990.5,29.8094]
[1742651213197,0.2465605,1990.6,1990.5,29.8094]
[1742651213381,5.2701705,1990.6,1990.5,29.8094]
[1742651213683,7.57549681,1990.6,1990.5,31.219]
[1742651213883,5.2701705,1990.6,1990.5,31.219]
[1742651214184,7.57549681,1990.6,1990.5,31.219]
[1742651214487,5.2701705,1990.6,1990.5,31.219]
[1742651220794,8.42409491,1990.6,1990.5,26.556]
[1742651220954,9.7688484,1990.6,1990.5,26.556]
[1742651221296,9.76884963,1990.6,1990.5,26.556]
[1742651221600,9.7060503,1990.6,1990.5,26.556]
[1742651221797,9.76885026,1990.6,1990.5,26.556]
[1742651222165,5.02537,1989.9,1989.8,5.68999]
[1742651222492,5.02563,1989.8,1989.7,0.026999]
[1742651222695,5.02563,1989.8,1989.7,31.246999]
[1742651222696,7.33095631,1989.8,1989.7,31.246999]
[1742651222874,7.57257689,1989.8,1989.7,31.246999]
[1742651223911,7.57257689,1989.8,1989.7,26.583999]
[1742651224201,7.57257689,1989.8,1989.7,31.246999]
[1742651224779,7.57257689,1989.8,1989.7,26.583999]
[1742651224964,8.91095158,1989.8,1989.7,31.246999]
[1742651225165,10.45416235,1989.8,1989.7,31.246999]
[1742651228202,10.45416235,1989.8,1989.7,26.583999]
[1742651230915,11.24436235,1989.8,1989.7,26.583999]
[1742651237444,11.19411867,1989.8,1989.7,26.583999]
[1742651239011,9.06554398,1989.8,1989.7,0.026999]
[1742651244129,5.2170069,1989.8,1989.7,0.026999]
[1742651244318,5.2170069,1989.8,1989.7,0.624799]
[1742651244829,5.2170069,1989.8,1989.7,0.026999]
[1742651245265,7.52603383,1989.8,1989.7,0.026999]
[1742651247354,7.52603383,1989.8,1989.7,4.691999]
[1742651248462,5.2170069,1989.8,1989.7,5.7589989]
[1742651250359,7.52603383,1989.8,1989.7,5.7589989]
[1742651250554,7.52603383,1989.8,1989.7,5.289799]
[1742651252162,5.26725058,1989.8,1989.7,5.289799]
[1742651253464,5.26725058,1989.8,1989.7,31.859799]
[1742651256751,0.24162058,1989.8,1989.7,31.859799]
[1742651257062,8.8725513,1990.0,1989.7,31.859799]
[1742651257264,0.23832507,1989.8,1989.7,31.859799]
[1742651257450,8.8725513,1990.0,1989.7,31.859799]
[1742651257652,0.23843124,1989.8,1989.7,31.859799]
[1742651257983,0.23743606,1989.8,1989.7,31.859799]
[1742651258369,5.02547,1989.9,1989.7,31.859799]
[1742651258570,0.23743606,1989.8,1989.7,31.859799]
[1742651259058,5.02547,1989.9,1989.7,31.859799]
[1742651259261,0.23755218,1989.8,1989.7,32.409799]
[1742651259590,5.02488,1990.1,1989.9,0.5978]
[1742651260086,5.02476,1990.2,1989.9,0.5978]
[1742651260249,10.04962,1990.2,1989.9,0.5978]
[1742651260594,5.02493,1990.1,1989.9,0.5978]
[1742651260801,10.05,1990.1,1989.9,0.5978]
[1742651261304,5.02512,1990.0,1989.9,1.226579]
[1742651265397,5.02512,1990.0,1989.9,6.916569]
[1742651266799,5.02493,1990.1,1989.9,6.916569]
[1742651267123,10.05002,1990.1,1989.9,6.916569]
[1742651267462,10.04992,1990.1,1989.9,6.916569]
[1742651267667,5.02493,1990.1,1990.0,0.6916569]
[1742651269407,5.26203338,1990.1,1990.0,27.2576569]
[1742651271428,5.26203338,1990.1,1990.0,32.9476469]
[1742651273224,0.23710338,1990.1,1990.0,32.9476469]
[1742651273423,10.04946,1990.2,1990.0,32.9476469]
[1742651273631,10.04946,1990.2,1990.1,4.664]
[1742651274016,5.02467,1990.2,1990.1,5.2618]
[1742651274219,5.02467,1990.2,1990.1,8.0623272]
[1742651275426,7.33197524,1990.3,1990.1,8.0623272]
[1742651275632,5.02413,1990.4,1990.1,13.7523172]
[1742651277437,5.0244,1990.3,1990.1,14.12769453]
[1742651277603,5.0244,1990.3,1990.2,0.6916569]
[1742651283028,7.33195524,1990.3,1990.1,10.72936733]
[1742651283238,7.33217524,1990.2,1990.1,10.72936733]
[1742651283556,5.02462,1990.2,1990.1,10.72936733]
[1742651283732,7.33217524,1990.2,1990.1,10.35399]
[1742651284359,7.56804975,1990.2,1990.1,10.35399]
[1742651287030,5.26049451,1990.2,1990.1,10.35399]
[1742651287762,7.56804975,1990.2,1990.1,10.35399]
[1742651291274,5.26049451,1990.2,1990.1,10.35399]
[1742651293377,5.26049451,1990.2,1990.1,36.91599]
[1742651294102,7.56804975,1990.2,1990.1,36.91599]
[1742651300418,5.26049451,1990.2,1990.1,36.91599]
[1742651302925,0.23587451,1990.2,1990.1,36.91599]
[1742651303093,5.26049451,1990.2,1990.1,36.91599]
[1742651306338,7.56804975,1990.2,1990.1,36.91599]
[1742651315371,7.56804975,1990.2,1990.1,31.226]
[1742651317539,7.56804975,1990.2,1990.1,4.664]
[1742651325892,5.02487,1990.1,1990.0,32.25299]
[1742651326185,5.25949824,1990.1,1990.0,36.91499]
[1742651328950,7.56705348,1990.1,1990.0,36.91499]
[1742651332196,7.56705348,1990.1,1990.0,32.25299]
[1742651332418,7.56705348,1990.1,1990.0,36.91499]
[1742651332901,7.56705348,1990.1,1990.0,31.225]
[1742651336602,7.56705348,1990.1,1990.0,4.662]
[1742651341904,5.25949824,1990.1,1990.0,4.662]
[1742651343607,7.56705348,1990.1,1990.0,4.662]
[1742651347688,5.25949824,1990.1,1990.0,4.662]
[1742651358300,7.56705348,1990.1,1990.0,4.662]
[1742651360615,5.25949824,1990.1,1990.0,4.662]
[1742651369540,0.23462824,1990.1,1990.0,4.662]
[1742651369853,10.04956,1990.2,1990.0,5.2598]
[1742651370054,0.23419302,1990.1,1990.0,5.2598]
[1742651370353,10.04956,1990.2,1990.0,5.2598]
[1742651370547,5.25906302,1990.1,1990.0,5.2598]
[1742651371452,5.02487,1990.1,1990.0,5.2598]
[1742651371656,5.24189356,1990.1,1990.0,5.2598]
[1742651372823,5.02487,1990.1,1990.0,5.2598]
[1742651373152,5.24105835,1990.1,1990.0,5.2598]
[1742651375545,5.24105835,1990.1,1990.0,4.662]
[1742651381571,5.24105835,1990.1,1990.0,31.226]
[1742651384353,5.24105835,1990.1,1990.0,31.8238]
[1742651385364,0.21618835,1990.1,1990.0,31.8238]
[1742651385766,10.04954,1990.2,1990.0,31.8238]
[1742651385974,0.21239123,1990.1,1990.0,31.8238]
[1742651386340,10.04954,1990.2,1990.0,31.8238]
[1742651386539,0.21204333,1990.1,1990.0,31.8238]
[1742651386859,10.04954,1990.2,1990.0,31.8238]
[1742651387166,5.02421,1990.4,1990.2,0.5978]
[1742651387380,5.0239,1990.5,1990.2,0.5978]
[1742651387945,5.02412,1990.4,1990.2,0.5978]
[1742651388592,5.02412,1990.4,1990.3,10.35099]
[1742651388885,5.02412,1990.4,1990.3,11.445869]
[1742651389695,5.18566598,1990.4,1990.3,11.445869]
[1742651389985,0.16154598,1990.4,1990.3,11.445869]
[1742651395091,5.18565598,1990.4,1990.3,11.445869]
[1742651396493,0.16154598,1990.4,1990.3,11.445869]
[1742651400499,5.02397,1990.5,1990.3,11.445869]
[1742651400999,5.02397,1990.5,1990.4,26.56]
[1742651401499,5.18567087,1990.5,1990.4,26.56]
[1742651401706,5.18567087,1990.5,1990.4,28.9573051]
[1742651401906,0.16170087,1990.5,1990.4,28.9573051]
[1742651402207,0.16170087,1990.5,1990.4,29.5551051]
[1742651402618,5.02336,1990.7,1990.4,29.5551051]
[1742651402919,5.02336,1990.7,1990.5,5.68999]
[1742651403071,5.02336,1990.7,1990.6,0.568999]
[1742651404609,5.18747807,1990.7,1990.6,0.568999]
[1742651406412,5.02361,1990.6,1990.5,5.68999]
[1742651406775,5.18670092,1990.6,1990.5,5.68999]
[1742651413323,0.16309092,1990.6,1990.5,5.68999]
[1742651413685,5.0234,1990.7,1990.5,5.68999]
[1742651413886,0.16314335,1990.6,1990.5,5.68999]
[1742651414082,5.02314,1990.8,1990.5,6.784869]
[1742651414420,5.0225,1991.1,1990.7,7.33090524]
[1742651414580,5.02268,1991.0,1990.8,10.34899]
[1742651415208,5.02268,1991.0,1990.9,26.557]
[1742651415418,5.02268,1991.0,1990.9,28.9543051]
[1742651417822,5.0225,1991.1,1990.9,28.9543051]
[1742651418123,5.0225,1991.1,1990.9,34.6442951]
[1742651419592,0.13537503,1991.0,1990.9,34.6442951]
[1742651420006,5.78747,1991.3,1990.9,34.6442951]
[1742651420201,0.13537503,1991.0,1990.9,32.24699]
[1742651420523,10.04457,1991.2,1990.9,32.24699]
[1742651420709,5.02242,1991.1,1990.9,32.24699]
[1742651420913,0.13537503,1991.0,1990.9,32.24699]
[1742651421222,0.13537503,1991.0,1990.9,40.72519524]
[1742651421439,0.13537503,1991.0,1990.9,43.72519524]
[1742651421736,5.02118,1991.6,1991.2,5.61979]
[1742651421943,0.8309,1991.7,1991.2,5.61979]
[1742651421944,5.02084,1991.7,1991.3,17.67825524]
[1742651422221,0.11570464,1991.5,1991.3,17.67825524]
[1742651422547,5.02084,1991.7,1991.4,1.76782552]
[1742651422893,5.02123,1991.6,1991.4,1.76782552]
[1742651424823,5.02123,1991.6,1991.4,2.15262078]
[1742651425034,5.02134,1991.5,1991.4,2.15262078]
[1742651425238,5.02115,1991.6,1991.4,2.15262078]
[1742651425641,5.02134,1991.5,1991.4,2.15262078]
[1742651426137,5.0211,1991.6,1991.4,2.15262078]
[1742651426833,5.0211,1991.6,1991.5,5.68999]
[1742651427035,5.0211,1991.6,1991.5,6.47425108]
[1742651428847,5.02089,1991.7,1991.5,6.47425108]
[1742651429649,10.04193,1991.7,1991.5,6.47425108]
[1742651429853,5.02108,1991.6,1991.5,6.47425108]
[1742651431546,5.02089,1991.7,1991.5,33.01925108]
[1742651431746,5.02089,1991.7,1991.6,2.70792302]
[1742651434654,5.13714448,1991.7,1991.6,2.70792302]
[1742651440756,10.15819448,1991.7,1991.5,32.23499]
[1742651441661,0.11625448,1991.7,1991.5,34.54254524]
[1742651442163,0.11625448,1991.7,1991.5,32.23499]
[1742651442370,5.13715448,1991.7,1991.5,32.23499]
[1742651447767,10.15822448,1991.7,1991.5,32.23499]
[1742651447956,5.02108,1991.6,1991.5,32.23499]
[1742651448363,5.13342816,1991.6,1991.5,32.23499]
[1742651449576,0.11234816,1991.6,1991.5,32.23499]
[1742651455186,0.11234816,1991.6,1991.5,32.78499]
[1742651455392,0.11234816,1991.6,1991.5,37.80633]
[1742651455697,5.02058,1991.8,1991.5,37.80633]
[1742651455864,0.11224284,1991.6,1991.5,37.80633]
[1742651456062,5.02058,1991.8,1991.5,32.78499]
[1742651456256,0.11224284,1991.6,1991.5,32.78499]
[1742651456476,5.02058,1991.8,1991.5,32.78499]
[1742651456673,0.11235882,1991.6,1991.5,32.78499]
[1742651456861,5.02058,1991.8,1991.5,32.78499]
[1742651457073,0.11245475,1991.6,1991.5,32.78499]
[1742651457260,5.02058,1991.8,1991.5,32.78499]
[1742651457462,0.11245475,1991.6,1991.5,32.78499]
[1742651457974,5.02058,1991.8,1991.5,32.78499]
[1742651458286,0.11248672,1991.6,1991.5,32.78499]
[1742651458490,5.02058,1991.8,1991.5,32.78499]
[1742651458652,0.11248672,1991.6,1991.5,32.78499]
[1742651458853,5.02058,1991.8,1991.5,32.78499]
[1742651459056,0.11248672,1991.6,1991.5,27.095]
[1742651459289,5.02058,1991.8,1991.5,27.095]
[1742651459492,5.02058,1991.8,1991.6,2.7095]
[1742651459701,0.11297655,1991.7,1991.6,2.7095]
[1742651459992,0.11297655,1991.7,1991.6,7.3645]
[1742651461575,5.13380655,1991.7,1991.6,7.3645]
[1742651461979,5.02108,1991.6,1991.5,26.545]
[1742651462291,5.02108,1991.6,1991.5,31.2]
[1742651462507,5.13352536,1991.6,1991.5,31.2]
[1742651473815,8.2137806,1991.6,1991.5,26.545]
[1742651473986,5.90622536,1991.6,1991.5,31.2]
[1742651479129,0.11244536,1991.6,1991.5,31.2]
[1742651479494,5.79329,1991.8,1991.5,31.2]
[1742651479690,5.02084,1991.7,1991.5,31.2]
[1742651479890,5.13091322,1991.7,1991.5,31.2]
[1742651480206,5.02108,1991.6,1991.5,31.2]
[1742651480585,5.13066336,1991.6,1991.5,31.2]
[1742651482524,5.13066336,1991.6,1991.5,37.19]
[1742651499357,0.10958336,1991.6,1991.5,37.19]
[1742651499708,5.02068,1991.8,1991.5,37.19]
[1742651499908,0.10971138,1991.6,1991.5,37.19]
[1742651500120,10.04145,1991.8,1991.5,37.19]
[1742651500646,0.11020124,1991.7,1991.5,37.19]
[1742651501930,0.11020124,1991.7,1991.6,0.5978]
[1742651502337,5.02062,1991.8,1991.6,0.5978]
[1742651502552,0.11044661,1991.7,1991.6,0.5978]
[1742651505029,0.11044661,1991.7,1991.5,37.19]
[1742651506077,0.11044661,1991.7,1991.6,1.01869909]
[1742651506971,0.11044661,1991.7,1991.5,32.535]
[1742651507177,5.88652661,1991.7,1991.6,4.654]
[1742651508578,13.21510185,1991.7,1991.6,4.654]
[1742651510174,5.77628,1991.6,1991.5,26.545]
[1742651510474,8.19279766,1991.6,1991.5,31.199]
[1742651511047,10.5003529,1991.6,1991.5,31.199]
[1742651511961,8.19279766,1991.6,1991.5,31.199]
[1742651512138,9.64631644,1991.6,1991.5,31.199]
[1742651520372,15.01664317,1991.6,1991.5,26.545]
[1742651520694,14.95387168,1991.6,1991.5,26.545]
[1742651521488,5.02295,1990.9,1990.7,7.01690469]
[1742651521661,5.02295,1990.9,1990.8,31.90369047]
[1742651522074,5.02263,1991.0,1990.8,32.50149047]
[1742651522474,5.02185,1991.3,1990.9,5.62054]
[1742651522678,5.02217,1991.2,1991.0,5.99]
[1742651524493,0.10524247,1991.1,1991.0,5.99]
[1742651524700,0.10524247,1991.1,1991.0,6.64878]
[1742651524902,5.02166,1991.4,1991.0,6.64878]
[1742651525099,5.02166,1991.4,1991.1,0.5978]
[1742651525400,5.02186,1991.3,1991.2,4.655]
[1742651525596,5.02186,1991.3,1991.2,5.18028]
[1742651526503,5.82426,1991.3,1991.2,4.655]
[1742651526674,5.02186,1991.3,1991.2,4.655]
[1742651539435,5.11852109,1991.3,1991.2,4.655]
[1742651542938,8.95936759,1991.3,1991.2,4.655]
[1742651543534,9.76266759,1991.3,1991.2,4.655]
[1742651545045,9.8254452,1991.3,1991.2,4.655]
[1742651545251,9.70585771,1991.3,1991.2,4.655]
[1742651545410,5.02209,1991.2,1991.1,26.547]
[1742651545738,7.42386489,1991.2,1991.1,31.202]
[1742651549239,7.48664523,1991.2,1991.1,31.202]
[1742651549444,7.42386489,1991.2,1991.1,31.202]
[1742651550620,7.32769386,1991.2,1991.1,31.202]
[1742651551744,7.39047419,1991.2,1991.1,31.202]
[1742651551940,7.39047419,1991.2,1991.1,26.547]
[1742651552244,7.39047419,1991.2,1991.1,31.202]
[1742651552419,8.85988089,1991.2,1991.1,31.202]
[1742651553032,9.64088089,1991.2,1991.1,31.202]
[1742651557758,9.64088089,1991.2,1991.1,4.655]
[1742651559521,9.57810056,1991.2,1991.1,4.655]
[1742651565672,5.02209,1991.2,1991.1,4.655]
[1742651568067,7.32769386,1991.2,1991.1,4.655]
[1742651568569,5.02209,1991.2,1991.1,4.655]
[1742651572268,5.02209,1991.2,1991.1,31.207]
[1742651574372,7.32769386,1991.2,1991.1,31.207]
[1742651577985,5.02209,1991.2,1991.1,31.207]
[1742651581588,5.02167,1991.4,1991.2,0.5978]
[1742651581793,5.02193,1991.3,1991.2,0.5978]
[1742651582302,5.02134,1991.5,1991.2,2.30560386]
[1742651582468,5.02134,1991.5,1991.3,0.5978]
[1742651582667,5.02134,1991.5,1991.4,5.99]
[1742651583261,5.02134,1991.5,1991.4,6.64878]
[1742651584103,7.32694386,1991.5,1991.4,5.99]
[1742651584406,7.38971376,1991.5,1991.4,5.99]
[1742651584566,7.32694386,1991.5,1991.4,5.99]
[1742651585061,5.02134,1991.5,1991.4,5.99]
[1742651587197,8.86268077,1991.5,1991.4,10.644]
[1742651587588,8.92545129,1991.5,1991.4,10.644]
[1742651588102,8.92545129,1991.5,1991.4,4.654]
[1742651590416,5.02134,1991.5,1991.4,4.654]
[1742651591075,8.86268077,1991.5,1991.4,4.654]
[1742651591276,10.25734192,1991.5,1991.4,4.654]
[1742651593614,8.86268077,1991.5,1991.4,4.654]
[1742651594419,5.02134,1991.5,1991.4,4.654]
[1742651602526,5.02115,1991.6,1991.4,4.654]
[1742651602830,5.02117,1991.6,1991.5,0.5978]
[1742651604693,5.02088,1991.7,1991.5,6.5878]
[1742651604893,5.0206,1991.8,1991.6,0.65878]
[1742651606525,5.0206,1991.8,1991.6,1.65841802]
[1742651607025,10.04136,1991.8,1991.6,1.65841802]
[1742651608193,5.02035,1991.9,1991.7,0.5978]
[1742651608397,5.02035,1991.9,1991.8,4.653]
[1742651610618,5.02035,1991.9,1991.8,31.198]
[1742651628832,5.01162987,1991.9,1991.8,31.198]
[1742651629710,5.01959,1992.2,1991.8,36.93278056]
[1742651629909,5.01959,1992.2,1991.9,2.30357646]
[1742651630117,5.01934,1992.3,1992.0,2.30357646]
[1742651630317,5.01934,1992.3,1992.0,2.90137646]
[1742651630555,5.02909,1992.4,1992.1,0.29013765]
[1742651630857,5.01934,1992.3,1992.2,4.652]
[1742651633547,5.01934,1992.3,1992.2,31.191]
[1742651634945,5.02909,1992.4,1992.2,31.191]
[1742651635127,5.01932,1992.3,1992.2,31.191]
[1742651640355,5.01932,1992.3,1992.2,31.7888]
[1742651642575,5.01932,1992.3,1992.2,31.191]
[1742651648479,5.02911,1992.4,1992.2,33.49457646]
[1742651648658,5.02911,1992.4,1992.2,31.191]
[1742651650240,10.04838,1992.4,1992.2,31.191]
[1742651650362,5.01932,1992.3,1992.2,31.191]
[1742651658730,5.79402,1992.3,1992.2,26.539]
[1742651659043,8.09759646,1992.3,1992.2,31.189]
[1742651660031,8.16034326,1992.3,1992.2,31.189]
[1742651660629,8.09759646,1992.3,1992.2,31.189]
[1742651662517,8.09759646,1992.3,1992.2,26.539]
[1742651662736,9.0106205,1992.3,1992.2,31.189]
[1742651663727,9.0106205,1992.3,1992.2,4.65]
[1742651664924,5.02008,1992.0,1991.9,26.536]
[1742651665227,5.02008,1992.0,1991.9,31.187]
[1742651670329,5.0196,1992.2,1991.9,31.187]
[1742651670534,5.01995,1992.1,1991.9,31.187]
[1742651671030,7.33264646,1992.4,1991.9,31.187]
[1742651671031,5.01932,1992.3,1992.0,2.90137646]
[1742651671331,5.01966,1992.2,1992.0,2.90137646]
[1742651673435,5.01966,1992.2,1992.1,26.537]
[1742651676031,5.01966,1992.2,1992.1,32.527]
[1742651677953,5.01932,1992.3,1992.1,32.527]
[1742651678168,0.01,1992.4,1992.1,34.83057646]
[1742651678332,10.04845,1992.4,1992.2,0.5978]
[1742651678530,10.04845,1992.4,1992.3,4.65]
[1742651683991,12.35202646,1992.4,1992.3,4.65]
[1742651684127,13.66255911,1992.4,1992.3,4.65]
[1742651684563,11.35898265,1992.4,1992.3,4.65]
[1742651686436,10.04845,1992.4,1992.3,4.65]
[1742651692396,10.04845,1992.4,1992.3,31.185]
[1742651692567,5.02916,1992.4,1992.3,31.185]
[1742651698908,0.01,1992.4,1992.3,39.47857646]
[1742651699243,0.01,1992.4,1992.3,37.175]
[1742651700238,5.02907,1992.4,1992.3,37.175]
[1742651700536,0.01,1992.4,1992.3,39.47857646]
[1742651700729,0.01,1992.4,1992.3,37.175]
[1742651704046,0.01,1992.4,1992.3,45.64569646]
[1742651706308,0.01,1992.4,1992.3,46.6557264]
[1742651707139,0.01,1992.4,1992.3,39.33282994]
[1742651711230,0.01,1992.4,1992.3,38.78282994]
[1742651713543,0.01,1992.4,1992.3,41.0864064]
[1742651714606,0.01,1992.4,1992.3,46.1057264]
[1742651714801,0.01,1992.4,1992.3,41.0864064]
[1742651716420,0.01,1992.4,1992.3,40.4886064]
[1742651721476,0.01,1992.4,1992.3,46.1057264]
[1742651723329,0.01,1992.4,1992.3,41.0864064]
[1742651727286,0.01,1992.4,1992.3,38.18502994]
[1742651731275,5.26511762,1992.4,1992.3,38.18502994]
[1742651734462,0.24604762,1992.4,1992.3,38.18502994]
[1742651734966,5.26511762,1992.4,1992.3,37.173]
[1742651735891,0.24604762,1992.4,1992.3,37.173]
[1742651737007,5.26511762,1992.4,1992.3,37.173]
[1742651739467,0.24604762,1992.4,1992.3,37.173]
[1742651746660,0.24604762,1992.4,1992.3,39.47657646]
[1742651746861,0.24604762,1992.4,1992.3,45.09369646]
[1742651747296,0.01,1992.4,1992.3,45.09369646]
[1742651747463,0.24390134,1992.4,1992.3,45.09369646]
[1742651747665,0.01,1992.4,1992.3,45.64369646]
[1742651747966,0.24390134,1992.4,1992.3,45.64369646]
[1742651748171,0.01,1992.4,1992.3,45.64369646]
[1742651748697,0.24390134,1992.4,1992.3,45.64369646]
[1742651749001,0.01,1992.4,1992.3,45.64369646]
[1742651749507,0.24390134,1992.4,1992.3,45.64369646]
[1742651749804,0.01,1992.4,1992.3,45.64369646]
[1742651750001,0.24390134,1992.4,1992.3,45.64369646]
[1742651750163,0.01,1992.4,1992.3,45.64369646]
[1742651750862,0.24390134,1992.4,1992.3,45.64369646]
[1742651751173,0.01,1992.4,1992.3,45.64369646]
[1742651751562,0.24401953,1992.4,1992.3,45.64369646]
[1742651751756,0.01,1992.4,1992.3,45.64369646]
[1742651751981,0.24401953,1992.4,1992.3,45.64369646]
[1742651759224,0.24401953,1992.4,1992.3,40.02657646]
[1742651760163,0.24401953,1992.4,1992.3,45.04589646]
[1742651760701,0.01,1992.4,1992.3,45.64369646]
[1742651761271,0.24420887,1992.4,1992.3,45.64369646]
[1742651764734,0.01,1992.4,1992.3,48.64369646]
[1742651765992,0.01,1992.4,1992.3,54.03905485]
[1742651767291,0.8233,1993.2,1993.0,0.55]
[1742651767496,0.8233,1993.2,1993.1,37.155]
[1742651769330,0.8233,1993.2,1993.1,37.53649517]
[1742651769526,5.84035,1993.2,1993.1,37.53649517]
[1742651770228,5.84035,1993.2,1993.1,37.155]
[1742651771629,8.14772646,1993.2,1993.1,37.155]
[1742651772829,5.84415,1993.2,1993.1,37.155]
[1742651774612,8.14772646,1993.2,1993.1,37.155]
[1742651777916,9.46418011,1993.2,1993.1,37.155]
[1742651778707,9.46418011,1993.2,1993.1,31.175]
[1742651779535,9.68604451,1993.2,1993.1,31.175]
[1742651779841,7.38246805,1993.2,1993.1,31.175]
[1742651780138,6.0660144,1993.2,1993.1,31.175]
[1742651783751,8.36959086,1993.2,1993.1,31.175]
[1742651784041,8.36959086,1993.2,1993.1,26.528]
[1742651784278,8.43230605,1993.2,1993.1,31.174]
[1742651784628,8.36959086,1993.2,1993.1,31.174]
[1742651784826,9.70823095,1993.2,1993.1,31.174]
[1742651786872,9.7709487,1993.2,1993.1,31.174]
[1742651787236,9.70823095,1993.2,1993.1,31.174]
[1742651787879,9.70823095,1993.2,1993.1,33.174]
[1742651790776,9.70823095,1993.2,1993.1,6.646]
[1742651813673,8.88113095,1993.2,1993.1,6.646]
[1742651816228,8.88113095,1993.2,1993.1,2.0]
[1742651816431,12.02572646,1993.2,1993.1,2.0]
[1742651816602,11.96300741,1993.2,1993.1,2.0]
[1742651823932,14.96300741,1993.2,1993.1,2.0]
[1742651825440,14.96300741,1993.2,1993.1,1e-05]
[1742651825796,21.06300741,1993.2,1993.1,1e-05]
[1742651826659,8.14888646,1992.7,1992.6,4.646]
[1742651826929,9.68608362,1992.7,1992.6,4.646]
[1742651827287,5.01882,1992.5,1992.4,26.526]
[1742651827527,8.36892703,1992.5,1992.4,31.172]
[1742651827701,8.43167048,1992.5,1992.4,26.526]
[1742651829217,8.36892703,1992.5,1992.4,26.526]
[1742651829423,10.00078736,1992.5,1992.4,26.526]
[1742651830131,9.93804238,1992.5,1992.4,26.526]
[1742651830495,10.00078828,1992.5,1992.4,26.526]
[1742651830723,5.02033,1991.9,1991.8,27.1278]
[1742651830935,7.53888697,1991.9,1991.8,31.7738]
[1742651831291,5.23531051,1991.9,1991.8,31.7738]
[1742651831494,5.23531051,1991.9,1991.8,26.53]
[1742651831495,7.53888697,1991.9,1991.8,26.53]
[1742651831794,7.53888697,1991.9,1991.8,31.176]
[1742651834530,7.60164669,1991.9,1991.8,31.176]
[1742651834900,7.53888697,1991.9,1991.8,31.176]
[1742651835728,7.53888697,1991.9,1991.8,26.53]
[1742651835932,7.53888697,1991.9,1991.8,31.177]
[1742651837129,5.23531051,1991.9,1991.8,31.7748]
[1742651837741,0.21498051,1991.9,1991.8,34.95228]
[1742651837893,0.21498051,1991.9,1991.8,31.7748]
[1742651838124,5.23531051,1991.9,1991.8,31.7748]
[1742651838601,0.21498051,1991.9,1991.8,31.7748]
[1742651840545,5.23531051,1991.9,1991.8,31.7748]
[1742651840694,0.21498051,1991.9,1991.8,31.7748]
[1742651842210,5.23531051,1991.9,1991.8,31.7748]
[1742651844232,5.23531051,1991.9,1991.8,31.177]
[1742651844738,5.23531051,1991.9,1991.8,26.53]
[1742651844916,9.07402493,1991.9,1991.8,31.177]
[1742651845295,10.62732617,1991.9,1991.8,31.177]
[1742651845501,10.56456742,1991.9,1991.8,31.177]
[1742651846334,10.56456742,1991.9,1991.8,26.53]
[1742651849650,9.07402493,1991.9,1991.8,26.53]
[1742651851124,5.23531051,1991.9,1991.8,26.53]
[1742651854715,5.29806999,1991.9,1991.8,26.53]
[1742651856649,5.23531051,1991.9,1991.8,26.53]
[1742651856975,5.29807231,1991.9,1991.8,26.53]
[1742651857144,5.02058,1991.8,1991.7,4.648]
[1742651857349,9.02985148,1991.8,1991.7,4.648]
[1742651860161,5.19113706,1991.8,1991.7,4.648]
[1742651863760,5.25390032,1991.8,1991.7,4.648]
[1742651864664,5.19113706,1991.8,1991.7,4.648]
[1742651871565,5.19113706,1991.8,1991.7,5.2458]
[1742651873859,6.21228377,1991.8,1991.7,4.648]
[1742651883651,6.27504637,1991.8,1991.7,4.648]
[1742651884956,6.21228377,1991.8,1991.7,4.648]
[1742651886395,6.27504663,1991.8,1991.7,4.648]
[1742651887010,6.21228377,1991.8,1991.7,4.648]
[1742651887198,8.5164769,1991.8,1991.7,4.648]
[1742651891597,8.57923977,1991.8,1991.7,4.648]
[1742651893117,8.5164769,1991.8,1991.7,4.648]
[1742651893413,8.57923988,1991.8,1991.7,4.648]
[1742651894115,8.5164769,1991.8,1991.7,4.648]
[1742651894813,8.57923974,1991.8,1991.7,4.648]
[1742651895170,9.34043974,1991.8,1991.7,4.648]
[1742651895375,5.02108,1991.6,1991.5,26.541]
[1742651895577,7.388041,1991.6,1991.5,26.541]
[1742651895914,7.55591903,1991.6,1991.5,31.189]
[1742651897316,7.49315116,1991.6,1991.5,31.189]
[1742651898392,5.18895803,1991.6,1991.5,31.189]
[1742651898585,5.18895803,1991.6,1991.5,31.7868]
[1742651902880,0.16787803,1991.6,1991.5,31.7868]
[1742651903111,5.18895803,1991.6,1991.5,31.7868]
[1742651905030,5.18895803,1991.6,1991.5,37.7668]
[1742651915234,5.18895803,1991.6,1991.5,37.169]
[1742651918051,5.18895803,1991.6,1991.5,32.521]
[1742651918256,8.51413896,1991.6,1991.5,37.169]
[1742651918433,8.51413896,1991.6,1991.5,32.521]
[1742651918603,9.33103896,1991.6,1991.5,37.169]
[1742651920051,7.02684583,1991.6,1991.5,37.169]
[1742651920411,6.20994583,1991.6,1991.5,37.169]
[1742651920621,5.18895803,1991.6,1991.5,37.169]
[1742651921749,0.16787803,1991.6,1991.5,37.169]